[Event "XXIX Cracovia 2018"]
[Site "Krakow"]
[Date "2019.01.03"]
[Round "8"]
[White "Golubka, Petro"]
[Black "Mosesov, Danylo"]
[Result "1/2-1/2"]
[ECO "D55"]
[WhiteElo "2464"]
[BlackElo "2343"]
[Annotator "ChessBase"]
[PlyCount "57"]
[EventDate "2018.12.27"]
[EventType "swiss"]
[EventCountry "POL"]
[SourceTitle "playchess.com"]
[Source "ChessBase"]
[SourceQuality "1"]
[TimeControl "40/5400+30:1800+30"]

1. d4 {[%emt 0:00:00]} Nf6 {[%emt 0:00:00]} 2. c4 {[%emt 0:00:00]} e6 {[%emt 0:00:00]} 3. Nf3 {[%emt 0:00:14]} d5 {[%emt 0:00:00]} 4. Nc3 {[%emt 0:00:25]} Be7 {[%emt 0:00:09]} 5. Bg5 {[%emt 0:00:10]} O-O {[%emt 0:00:08]} 6. e3 {[%emt 0:00:06]} h6 {[%emt 0:00:10]} 7. Bxf6 {[%emt 0:00:26]} Bxf6 {[%emt 0:00:05]} 8. Qc2 {[%emt 0:00:03]} c5 {[%emt 0:02:01]} 9. dxc5 {[%emt 0:00:09]} dxc4 {[%emt 0:00:11]} 10. Bxc4 {[%emt 0:00:11]} Nd7 {[%emt 0:02:13]} 11. c6 bxc6 {[%emt 0:00:03]} 12. O-O {[%emt 0:00:28]} Rb8 {[%emt 0:08:16]} 13. Rfd1 {[%emt 0:05:06]} Qb6 {[%emt 0:05:43]} 14. b3 {[%emt 0:04:12]} Qa5 {[%emt 0:15:29]} 15. Rac1 {[%emt 0:10:25]} Nb6 {[%emt 0:01:36]} 16. Ne4 {[%emt 0:06:14]} Be7 {[%emt 0:03:46]} 17. Bf1 {[%emt 0:01:00]} Ba3 {[%emt 0:06:49]} 18. Rb1 {[%emt 0:06:10]} Bb7 {[%emt 0:01:14]} 19. Nfd2 {[%emt 0:16:14]} Rfd8 {[%emt 0:07:33]} 20. Nc4 {[%emt 0:00:24]} Nxc4 {[%emt 0:00:10]} 21. Bxc4 {[%emt 0:00:08]} Be7 {[%emt 0:05:49]} 22. Be2 {[%emt 0:00:32]} c5 {[%emt 0:04:43]} 23. Nd2 {[%emt 0:00:20]} Qc7 {[%emt 0:00:24]} 24. Bf3 {[%emt 0:00:21]} Ba6 {[%emt 0:00:39]} 25. Nc4 {[%emt 0:00:26]} Bxc4 {[%emt 0:00:36]} 26. Qxc4 {[%emt 0:00:05]} Rxd1+ {[%emt 0:00:49]} 27. Rxd1 {[%emt 0:00:02]} Rd8 {[%emt 0:00:12]} 28. Rxd8+ {[%emt 0:00:12]} Qxd8 {[%emt 0:00:06]} 29. g3 {[%emt 0:00:14]} 1/2-1/2

[Event "XXIX Cracovia 2018"]
[Site "Krakow"]
[Date "2019.01.03"]
[Round "8"]
[White "Cukrowski, Filip"]
[Black "Biriukov, Nikolai"]
[Result "1/2-1/2"]
[ECO "C67"]
[WhiteElo "2416"]
[BlackElo "2365"]
[Annotator "NA"]
[PlyCount "44"]
[EventDate "2018.12.27"]
[EventType "swiss"]
[EventCountry "POL"]
[SourceTitle "playchess.com"]
[Source "ChessBase"]
[SourceQuality "1"]
[TimeControl "40/5400+30:1800+30"]

1. e4 {[%emt 0:00:00]} e5 {[%emt 0:00:08]} 2. Nf3 {[%emt 0:00:53]} Nc6 {[%emt 0:00:04]} 3. Bb5 {[%emt 0:00:07]} Nf6 {[%emt 0:00:06]} 4. O-O {[%emt 0:00:13]} Nxe4 {[%emt 0:01:53]} 5. d4 {[%emt 0:00:06]} Nd6 {[%emt 0:00:17]} 6. Bxc6 {[%emt 0:00:07]} dxc6 {[%emt 0:00:07]} 7. dxe5 {[%emt 0:00:05]} Nf5 {[%emt 0:00:10]} 8. Qxd8+ {[%emt 0:00:06]} Kxd8 {[%emt 0:00:03]} 9. Nbd2 {[%emt 0:00:10]} Ke8 {[%emt 0:02:58]} 10. c4 {[%emt 0:01:02]} c5 {[%emt 0:10:33]} 11. b3 {[%emt 0:02:14]} h5 {[%emt 0:10:38]} 12. Ne4 {[%emt 0:03:27]} Nd4 {[%emt 0:03:23]} 13. Nxd4 {[%emt 0:01:30]} cxd4 {[%emt 0:00:09]} 14. Bb2 {[%emt 0:00:08]} c5 {[%emt 0:00:36]} 15. b4 {[%emt 0:00:19]} cxb4 {[%emt 0:18:01]} 16. Bxd4 {[%emt 0:08:12]} Rh6 {[%emt 0:13:28]} 17. Rfe1 {[%emt 0:06:28]} Rc6 {[%emt 0:01:27]} 18. c5 {[%emt 0:03:17]} Be6 {[%emt 0:05:07]} 19. f4 {[%emt 0:03:36]} b6 {[%emt 0:01:29]} 20. cxb6 {[%emt 0:10:02]} axb6 {[%emt 0:00:07]} 21. Nd6+ {[%emt 0:04:23]} Bxd6 {[%emt 0:01:11]} 22. exd6 {[%emt 0:00:06]} Rxd6 {[%emt 0:03:05]} 1/2-1/2

[Event "XXIX Cracovia 2018"]
[Site "Krakow"]
[Date "2019.01.03"]
[Round "8"]
[White "Lewtak, Damian"]
[Black "Nowicki, Bartosz"]
[Result "0-1"]
[ECO "B06"]
[WhiteElo "2393"]
[BlackElo "2305"]
[Annotator "NA"]
[PlyCount "70"]
[EventDate "2018.12.27"]
[EventType "swiss"]
[EventCountry "POL"]
[SourceTitle "playchess.com"]
[Source "ChessBase"]
[SourceQuality "1"]
[TimeControl "40/5400+30:1800+30"]

1. e4 {[%emt 0:00:00]} d6 {[%emt 0:00:24]} 2. d4 {[%emt 0:00:24]} g6 {[%emt 0:00:11]} 3. Nc3 {[%emt 0:00:40]} Bg7 {[%emt 0:00:05]} 4. f4 {[%emt 0:00:08]} a6 {[%emt 0:00:05]} 5. Nf3 {[%emt 0:01:32]} b5 {[%emt 0:00:07]} 6. Be3 {[%emt 0:03:29]} Bb7 {[%emt 0:00:12]} 7. a3 {[%emt 0:01:05]} Nd7 {[%emt 0:00:53]} 8. d5 {[%emt 0:01:40]} c5 {[%emt 0:04:30]} 9. dxc6 {[%emt 0:07:42]} Bxc6 {[%emt 0:00:05]} 10. Nd4 {[%emt 0:00:04]} Bb7 {[%emt 0:00:11]} 11. Be2 {[%emt 0:00:25]} Ngf6 {[%emt 0:02:17]} 12. Bf3 {[%emt 0:00:12]} O-O {[%emt 0:04:59]} 13. Nde2 {[%emt 0:17:20]} Rc8 {[%emt 0:06:54]} 14. O-O {[%emt 0:01:31]} Qc7 {[%emt 0:00:16]} 15. g4 {[%emt 0:01:59]} Nb6 {[%emt 0:03:37]} 16. b3 {[%emt 0:15:54]} Nfd7 {[%emt 0:04:22]} 17. Bd4 {[%emt 0:02:31]} e5 {[%emt 0:00:24]} 18. fxe5 {[%emt 0:00:08]} dxe5 {[%emt 0:08:35]} 19. Be3 {[%emt 0:02:30]} Nc5 {[%emt 0:01:26]} 20. a4 {[%emt 0:03:42]} Rfd8 {[%emt 0:07:29]} 21. Qc1 {[%emt 0:00:43]} b4 {[%emt 0:00:57]} 22. a5 {[%emt 0:00:18]} Nbd7 {[%emt 0:04:55]} 23. Nd5 {[%emt 0:07:22]} Bxd5 {[%emt 0:01:06]} 24. exd5 {[%emt 0:00:06]} e4 {[%emt 0:00:49]} 25. Bg2 {[%emt 0:00:20]} Ne5 {[%emt 0:04:12]} 26. Bf4 {[%emt 0:01:27]} Qd7 {[%emt 0:02:31]} 27. Qe1 {[%emt 0:02:06]} Qxg4 {[%emt 0:01:08]} 28. Bxe5 {[%emt 0:02:28]} Bxe5 {[%emt 0:00:24]} 29. Rd1 {[%emt 0:00:10]} f5 {[%emt 0:02:36]} 30. h3 {[%emt 0:01:17]} Qg5 {[%emt 0:01:13]} 31. Qxb4 {[%emt 0:01:35]} Qe3+ {[%emt 0:00:53]} 32. Rf2 {[%emt 0:00:06]} f4 {[%emt 0:01:53]} 33. d6 {[%emt 0:04:23]} f3 {[%emt 0:00:34]} 34. Qc4+ {[%emt 0:00:06]} Kg7 {[%emt 0:01:41]} 35. Nd4 {[%emt 0:01:07]} Bg3 {[%emt 0:01:46]} 0-1

[Event "XXIX Cracovia 2018"]
[Site "Krakow"]
[Date "2019.01.03"]
[Round "8"]
[White "Goumas, Georgios"]
[Black "Kosakowski, Jakub"]
[Result "0-1"]
[ECO "C45"]
[WhiteElo "2378"]
[BlackElo "2415"]
[Annotator "NA"]
[PlyCount "78"]
[EventDate "2018.12.27"]
[EventType "swiss"]
[EventCountry "POL"]
[SourceTitle "playchess.com"]
[Source "ChessBase"]
[SourceQuality "1"]
[TimeControl "40/5400+30:1800+30"]

1. e4 {[%emt 0:08:19]} e5 {[%emt 0:00:00]} 2. Nf3 {[%emt 0:00:08]} Nc6 {[%emt 0:00:00]} 3. d4 {[%emt 0:00:16]} exd4 {[%emt 0:00:02]} 4. Nxd4 {[%emt 0:00:08]} Bc5 {[%emt 0:01:17]} 5. Nxc6 {[%emt 0:01:08]} bxc6 {[%emt 0:03:02]} 6. Bd3 {[%emt 0:01:11]} Qh4 {[%emt 0:00:24]} 7. Qe2 {[%emt 0:00:45]} Nf6 {[%emt 0:00:10]} 8. Be3 {[%emt 0:00:09]} Bxe3 {[%emt 0:00:45]} 9. Qxe3 {[%emt 0:00:07]} O-O {[%emt 0:00:09]} 10. O-O {[%emt 0:01:03]} Re8 {[%emt 0:01:45]} 11. Nd2 {[%emt 0:00:09]} d6 {[%emt 0:03:53]} 12. Rae1 {[%emt 0:08:07]} a5 {[%emt 0:08:49]} 13. Nf3 {[%emt 0:27:30]} Qh5 {[%emt 0:00:18]} 14. Qf4 {[%emt 0:06:12]} Nd7 {[%emt 0:05:52]} 15. Nd4 {[%emt 0:08:11]} Qc5 {[%emt 0:05:13]} 16. Nf3 {[%emt 0:06:46]} f6 {[%emt 0:07:14]} 17. b3 {[%emt 0:00:34]} Ba6 {[%emt 0:02:35]} 18. Bxa6 {[%emt 0:00:51]} Rxa6 {[%emt 0:00:08]} 19. Re2 {[%emt 0:01:45]} a4 {[%emt 0:00:15]} 20. Rd1 {[%emt 0:01:02]} Qa3 {[%emt 0:04:25]} 21. e5 {[%emt 0:05:24]} Qc5 {[%emt 0:09:46]} 22. b4 {[%emt 0:03:39]} Qb5 {[%emt 0:01:48]} 23. Nd4 {[%emt 0:02:08]} Qc4 {[%emt 0:06:45]} 24. e6 {[%emt 0:00:58]} Ne5 {[%emt 0:01:07]} 25. Qg3 {[%emt 0:01:35]} Ng6 {[%emt 0:11:13]} 26. c3 {[%emt 0:05:01]} c5 {[%emt 0:02:08]} 27. bxc5 {[%emt 0:00:08]} Qxc5 {[%emt 0:00:10]} 28. Rde1 {[%emt 0:00:43]} Ra5 {[%emt 0:01:34]} 29. h3 {[%emt 0:03:04]} Qc4 {[%emt 0:00:42]} 30. h4 {[%emt 0:03:19]} Re5 {[%emt 0:03:37]} 31. Qf3 {[%emt 0:03:31]} Nxh4 {[%emt 0:03:05]} 32. Qb7 {[%emt 0:00:06]} Ng6 {[%emt 0:00:42]} 33. Rxe5 {[%emt 0:00:59]} fxe5 {[%emt 0:01:17]} 34. Nb5 {[%emt 0:00:29]} Qxe6 {[%emt 0:06:33]} 35. Nxc7 {[%emt 0:00:15]} Qf7 {[%emt 0:00:05]} 36. Qb6 {[%emt 0:00:40]} Rf8 {[%emt 0:00:10]} 37. Rf1 {[%emt 0:00:32]} Nf4 {[%emt 0:00:13]} 38. g3 {[%emt 0:01:24]} Ne2+ {[%emt 0:00:10]} 39. Kg2 {[%emt 0:00:11]} Qf3+ {[%emt 0:00:04]} 0-1

[Event "XXIX Cracovia 2018"]
[Site "Krakow"]
[Date "2019.01.03"]
[Round "8"]
[White "Galperin, Platon"]
[Black "Kulkarni Bhakti"]
[Result "0-1"]
[ECO "C09"]
[WhiteElo "2363"]
[BlackElo "2283"]
[Annotator "NA"]
[PlyCount "119"]
[EventDate "2018.12.27"]
[EventType "swiss"]
[EventCountry "POL"]
[SourceTitle "playchess.com"]
[Source "ChessBase"]
[SourceQuality "1"]
[TimeControl "40/5400+30:1800+30"]

1. e4 {[%emt 0:08:31]} e6 {[%emt 0:03:11]} 2. d4 {[%emt 0:00:10]} d5 {[%emt 0:00:05]} 3. Nd2 {[%emt 0:00:12]} c5 {[%emt 0:00:41]} 4. exd5 {[%emt 0:00:04]} exd5 {[%emt 0:00:57]} 5. Ngf3 {[%emt 0:00:06]} Nc6 {[%emt 0:00:37]} 6. Bb5 {[%emt 0:00:03]} Qe7+ {[%emt 0:03:12]} 7. Be2 {[%emt 0:00:03]} Nf6 {[%emt 0:05:07]} 8. O-O {[%emt 0:00:08]} Qc7 {[%emt 0:00:17]} 9. Re1 {[%emt 0:00:19]} Be7 {[%emt 0:00:18]} 10. dxc5 {[%emt 0:07:28]} O-O {[%emt 0:01:08]} 11. Nb3 {[%emt 0:00:50]} a5 {[%emt 0:02:16]} 12. a4 {[%emt 0:01:02]} Bf5 {[%emt 0:01:17]} 13. c3 {[%emt 0:07:39]} Rad8 {[%emt 0:06:22]} 14. h3 {[%emt 0:03:08]} Ne4 {[%emt 0:02:23]} 15. Be3 {[%emt 0:00:04]} Bg6 {[%emt 0:01:08]} 16. Nfd4 {[%emt 0:02:49]} Nxd4 {[%emt 0:07:12]} 17. cxd4 {[%emt 0:05:41]} f5 {[%emt 0:00:23]} 18. Bd2 {[%emt 0:08:47]} Ra8 {[%emt 0:02:30]} 19. Bh5 {[%emt 0:14:01]} Bh4 {[%emt 0:11:30]} 20. Rf1 {[%emt 0:00:02]} Bxf2+ {[%emt 0:03:09]} 21. Rxf2 {[%emt 0:00:59]} Qg3 {[%emt 0:00:29]} 22. Qf3 {[%emt 0:09:51]} Bxh5 {[%emt 0:00:31]} 23. Qxg3 {[%emt 0:00:03]} Nxg3 {[%emt 0:00:08]} 24. Nxa5 {[%emt 0:06:12]} Ne4 {[%emt 0:05:43]} 25. b4 {[%emt 0:02:44]} Nxf2 {[%emt 0:06:42]} 26. Kxf2 {[%emt 0:00:02]} Rfe8 {[%emt 0:02:02]} 27. Ra2 {[%emt 0:04:25]} Re2+ {[%emt 0:22:01]} 28. Kf1 {[%emt 0:00:06]} f4 {[%emt 0:00:05]} 29. Rb2 {[%emt 0:00:35]} f3 {[%emt 0:00:12]} 30. gxf3 {[%emt 0:00:09]} Bxf3 {[%emt 0:00:09]} 31. Bc1 {[%emt 0:01:20]} Rxb2 {[%emt 0:00:42]} 32. Bxb2 {[%emt 0:00:03]} Bd1 {[%emt 0:00:29]} 33. Nxb7 {[%emt 0:03:55]} Bxa4 {[%emt 0:00:41]} 34. Nd6 {[%emt 0:01:51]} Rb8 {[%emt 0:01:56]} 35. Bc3 {[%emt 0:00:02]} Kf8 {[%emt 0:00:49]} 36. Kf2 {[%emt 0:00:50]} Bd7 {[%emt 0:00:12]} 37. Kg3 {[%emt 0:08:20]} Ra8 {[%emt 0:03:25]} 38. Kf4 {[%emt 0:01:05]} Ra3 {[%emt 0:00:06]} 39. Be1 {[%emt 0:02:10]} Ke7 {[%emt 0:05:37]} 40. Nf5+ {[%emt 0:00:00]} Bxf5 {[%emt 0:00:00]} 41. Kxf5 {[%emt 0:03:35]} Rxh3 {[%emt 0:04:16]} 42. b5 {[%emt 0:00:58]} Rb3 {[%emt 0:00:22]} 43. Bh4+ {[%emt 0:06:56]} Kd7 {[%emt 0:00:06]} 44. Ke5 {[%emt 0:00:15]} Rxb5 {[%emt 0:01:15]} 45. Kxd5 {[%emt 0:00:03]} h6 {[%emt 0:00:36]} 46. Kc4 {[%emt 0:00:31]} Ra5 {[%emt 0:00:51]} 47. Bg3 {[%emt 0:05:43]} Ra4+ {[%emt 0:02:18]} 48. Kd5 {[%emt 0:00:43]} Ra6 {[%emt 0:00:19]} 49. Kc4 {[%emt 0:04:30]} Rg6 {[%emt 0:05:01]} 50. Be5 {[%emt 0:02:31]} Rg4 {[%emt 0:00:21]} 51. Kd5 {[%emt 0:00:16]} Rg6 {[%emt 0:04:50]} 52. Kc4 {[%emt 0:01:37]} Rg5 {[%emt 0:08:07]} 53. Kd5 {[%emt 0:09:02]} h5 {[%emt 0:00:01]} 54. c6+ {[%emt 0:02:15]} Kc8 {[%emt 0:00:03]} 55. Ke4 {[%emt 0:01:28]} h4 {[%emt 0:00:08]} 56. Bf4 {[%emt 0:00:59]} h3 {[%emt 0:00:19]} 57. Bxg5 {[%emt 0:00:48]} h2 {[%emt 0:00:05]} 58. d5 {[%emt 0:00:19]} h1=Q+ {[%emt 0:00:07]} 59. Ke5 {[%emt 0:00:11]} Qh5 {[%emt 0:00:21]} 60. Kd4 0-1

[Event "XXIX Cracovia 2018"]
[Site "Krakow"]
[Date "2019.01.03"]
[Round "8"]
[White "Lewicki, Miroslaw"]
[Black "Miroshnichenko, Pavel"]
[Result "1-0"]
[ECO "C84"]
[WhiteElo "2347"]
[BlackElo "2275"]
[Annotator "NA"]
[PlyCount "73"]
[EventDate "2018.12.27"]
[EventType "swiss"]
[EventCountry "POL"]
[SourceTitle "playchess.com"]
[Source "ChessBase"]
[SourceQuality "1"]
[TimeControl "40/5400+30:1800+30"]

1. e4 {[%emt 0:00:00]} e5 {[%emt 0:00:00]} 2. Nf3 {[%emt 0:00:00]} Nc6 {[%emt 0:00:00]} 3. Bb5 {[%emt 0:00:40]} a6 {[%emt 0:00:00]} 4. Ba4 {[%emt 0:00:05]} Nf6 {[%emt 0:00:00]} 5. O-O {[%emt 0:00:11]} Be7 {[%emt 0:00:00]} 6. d3 {[%emt 0:00:06]} b5 {[%emt 0:01:51]} 7. Bb3 {[%emt 0:03:14]} O-O {[%emt 0:00:05]} 8. c3 {[%emt 0:00:14]} d5 {[%emt 0:06:55]} 9. Qe2 {[%emt 0:02:01]} dxe4 {[%emt 0:05:59]} 10. dxe4 {[%emt 0:00:03]} Bc5 {[%emt 0:00:11]} 11. h3 {[%emt 0:06:22]} Qe7 {[%emt 0:03:32]} 12. Bg5 {[%emt 0:00:55]} Na5 {[%emt 0:03:49]} 13. Bc2 {[%emt 0:01:03]} Nc4 {[%emt 0:00:40]} 14. Bd3 {[%emt 0:01:41]} Nd6 {[%emt 0:03:36]} 15. Nbd2 {[%emt 0:00:45]} Bb7 {[%emt 0:05:01]} 16. b4 {[%emt 0:01:53]} Bb6 {[%emt 0:01:27]} 17. a4 {[%emt 0:00:27]} Qe6 {[%emt 0:07:24]} 18. Bxf6 {[%emt 0:03:07]} Qxf6 {[%emt 0:00:06]} 19. axb5 {[%emt 0:00:06]} axb5 {[%emt 0:00:16]} 20. Rxa8 {[%emt 0:00:11]} Rxa8 {[%emt 0:03:28]} 21. Bxb5 {[%emt 0:00:06]} Ra3 {[%emt 0:04:50]} 22. Rc1 {[%emt 0:01:03]} Qf4 {[%emt 0:01:48]} 23. Bd3 {[%emt 0:03:13]} c5 {[%emt 0:04:40]} 24. g3 {[%emt 0:16:41]} Qf6 {[%emt 0:04:18]} 25. Kg2 {[%emt 0:02:42]} cxb4 {[%emt 0:07:05]} 26. cxb4 {[%emt 0:00:30]} h6 {[%emt 0:00:21]} 27. Nc4 {[%emt 0:02:24]} Nxc4 {[%emt 0:09:07]} 28. Bxc4 {[%emt 0:00:40]} Kh7 {[%emt 0:06:28]} 29. b5 {[%emt 0:03:19]} Qg6 {[%emt 0:03:09]} 30. Bd5 {[%emt 0:02:42]} Bxd5 {[%emt 0:03:37]} 31. exd5 {[%emt 0:00:12]} f6 {[%emt 0:05:31]} 32. Rc6 {[%emt 0:02:05]} Ba5 {[%emt 0:00:45]} 33. Nxe5 {[%emt 0:01:00]} Qf5 {[%emt 0:01:04]} 34. Ng4 {[%emt 0:02:47]} Qxd5+ {[%emt 0:01:33]} 35. Kh2 {[%emt 0:00:06]} Ra1 {[%emt 0:01:56]} 36. Nxf6+ {[%emt 0:00:25]} gxf6 {[%emt 0:00:45]} 37. Qe7+ {[%emt 0:00:05]} 1-0

[Event "XXIX Cracovia 2018"]
[Site "Krakow"]
[Date "2019.01.03"]
[Round "8"]
[White "Eggink, Ryszard"]
[Black "Dietmayer-Kraeutler, Marco"]
[Result "0-1"]
[ECO "D00"]
[WhiteElo "2343"]
[BlackElo "2311"]
[Annotator "NA"]
[PlyCount "64"]
[EventDate "2018.12.27"]
[EventType "swiss"]
[EventCountry "POL"]
[SourceTitle "playchess.com"]
[Source "ChessBase"]
[SourceQuality "1"]
[TimeControl "40/5400+30:1800+30"]

1. d4 {[%emt 0:00:00]} d5 {[%emt 0:00:00]} 2. Bf4 {[%emt 0:00:00]} Nf6 {[%emt 0:00:40]} 3. e3 {[%emt 0:00:00]} c5 {[%emt 0:01:19]} 4. Nf3 {[%emt 0:01:05]} Nc6 {[%emt 0:01:12]} 5. c3 {[%emt 0:03:10]} Qb6 {[%emt 0:07:21]} 6. Qb3 {[%emt 0:04:53]} c4 {[%emt 0:01:07]} 7. Qc2 {[%emt 0:05:11]} Bf5 {[%emt 0:04:45]} 8. Qc1 {[%emt 0:02:06]} h6 {[%emt 0:02:07]} 9. h3 {[%emt 0:05:45]} g5 {[%emt 0:05:39]} 10. Bh2 {[%emt 0:00:06]} Bg7 {[%emt 0:00:07]} 11. Nbd2 {[%emt 0:00:24]} Rc8 {[%emt 0:05:28]} 12. g4 {[%emt 0:03:25]} Bh7 {[%emt 0:08:36]} 13. Be2 {[%emt 0:04:37]} Nd7 {[%emt 0:16:42]} 14. h4 {[%emt 0:10:47]} f6 {[%emt 0:04:59]} 15. hxg5 {[%emt 0:15:36]} fxg5 {[%emt 0:00:37]} 16. O-O {[%emt 0:10:13]} O-O {[%emt 0:02:48]} 17. e4 {[%emt 0:03:24]} dxe4 {[%emt 0:09:41]} 18. Ne1 {[%emt 0:00:39]} Na5 {[%emt 0:03:57]} 19. Ng2 {[%emt 0:07:10]} e5 {[%emt 0:00:14]} 20. d5 {[%emt 0:00:06]} Nc5 {[%emt 0:04:55]} 21. Nxc4 {[%emt 0:04:44]} Nxc4 {[%emt 0:00:20]} 22. Bxc4 {[%emt 0:00:01]} Nd3 {[%emt 0:00:23]} 23. Bxd3 {[%emt 0:00:01]} exd3 {[%emt 0:00:05]} 24. c4 {[%emt 0:05:40]} Qd4 {[%emt 0:02:55]} 25. Ne3 {[%emt 0:00:12]} b5 {[%emt 0:02:38]} 26. b3 {[%emt 0:00:18]} d2 {[%emt 0:05:15]} 27. Qa3 {[%emt 0:04:06]} Rxf2 {[%emt 0:01:14]} 28. Kxf2 {[%emt 0:00:27]} Rf8+ {[%emt 0:00:19]} 29. Qxf8+ {[%emt 0:01:13]} Bxf8 {[%emt 0:00:05]} 30. Bg1 {[%emt 0:02:36]} Bc5 {[%emt 0:03:38]} 31. Kg2 {[%emt 0:00:35]} Be4+ {[%emt 0:00:36]} 32. Kh2 {[%emt 0:00:27]} Qd3 {[%emt 0:00:30]} 0-1

[Event "XXIX Cracovia 2018"]
[Site "Krakow"]
[Date "2019.01.03"]
[Round "8"]
[White "Heinzel, Olaf"]
[Black "Lukasiewicz, Krzysztof"]
[Result "1-0"]
[ECO "D00"]
[WhiteElo "2326"]
[BlackElo "2223"]
[Annotator "NA"]
[PlyCount "61"]
[EventDate "2018.12.27"]
[EventType "swiss"]
[EventCountry "POL"]
[SourceTitle "playchess.com"]
[Source "ChessBase"]
[SourceQuality "1"]
[TimeControl "40/5400+30:1800+30"]

1. d4 {[%emt 0:00:00]} d5 {[%emt 0:00:00]} 2. Bf4 {[%emt 0:00:00]} Nf6 {[%emt 0:00:00]} 3. e3 {[%emt 0:00:00]} c5 {[%emt 0:00:00]} 4. Nc3 {[%emt 0:00:11]} cxd4 {[%emt 0:00:51]} 5. exd4 {[%emt 0:00:12]} a6 {[%emt 0:00:08]} 6. Nf3 {[%emt 0:00:54]} Nc6 {[%emt 0:04:27]} 7. Ne5 {[%emt 0:02:37]} e6 {[%emt 0:08:25]} 8. Be2 {[%emt 0:05:42]} Qb6 {[%emt 0:08:30]} 9. Nxc6 {[%emt 0:01:05]} Qxc6 {[%emt 0:01:35]} 10. O-O {[%emt 0:00:42]} Be7 {[%emt 0:01:40]} 11. a4 {[%emt 0:05:24]} b6 {[%emt 0:00:49]} 12. Bd3 {[%emt 0:10:54]} O-O {[%emt 0:07:51]} 13. Qe2 {[%emt 0:02:06]} Qb7 {[%emt 0:02:53]} 14. Rfe1 {[%emt 0:09:19]} Bd7 {[%emt 0:02:11]} 15. g4 {[%emt 0:08:19]} Rfc8 {[%emt 0:05:54]} 16. g5 {[%emt 0:05:18]} Ne8 {[%emt 0:02:10]} 17. Qf3 {[%emt 0:00:31]} Bf8 {[%emt 0:05:13]} 18. Re3 {[%emt 0:03:06]} g6 {[%emt 0:02:56]} 19. Be5 {[%emt 0:01:20]} Bg7 {[%emt 0:05:23]} 20. Qf4 {[%emt 0:00:21]} Bxe5 {[%emt 0:00:09]} 21. dxe5 {[%emt 0:00:09]} Ng7 {[%emt 0:00:22]} 22. Rh3 {[%emt 0:04:47]} Qc7 {[%emt 0:04:05]} 23. Nd1 {[%emt 0:02:01]} Nh5 {[%emt 0:08:52]} 24. Rxh5 {[%emt 0:00:30]} gxh5 {[%emt 0:00:37]} 25. Bxh7+ {[%emt 0:00:02]} Kf8 {[%emt 0:01:33]} 26. g6 {[%emt 0:00:48]} Kg7 {[%emt 0:06:02]} 27. Qxf7+ {[%emt 0:00:28]} Kh6 {[%emt 0:00:02]} 28. g7 {[%emt 0:00:16]} Be8 {[%emt 0:00:32]} 29. g8=N+ {[%emt 0:01:35]} Kg5 {[%emt 0:00:05]} 30. Qf6+ {[%emt 0:00:18]} Kg4 {[%emt 0:00:11]} 31. Ne3+ {[%emt 0:01:13]} 1-0

[Event "XXIX Cracovia 2018"]
[Site "Krakow"]
[Date "2019.01.03"]
[Round "8"]
[White "Licznerski, Lukasz"]
[Black "Marczuk, Dominik"]
[Result "1-0"]
[ECO "B13"]
[WhiteElo "2326"]
[BlackElo "2274"]
[Annotator "NA"]
[PlyCount "113"]
[EventDate "2018.12.27"]
[EventType "swiss"]
[EventCountry "POL"]
[SourceTitle "playchess.com"]
[Source "ChessBase"]
[SourceQuality "1"]
[TimeControl "40/5400+30:1800+30"]

1. e4 {[%emt 0:00:00]} c6 {[%emt 0:00:00]} 2. d4 {[%emt 0:00:00]} d5 {[%emt 0:00:00]} 3. exd5 {[%emt 0:00:56]} cxd5 {[%emt 0:00:00]} 4. c4 {[%emt 0:00:02]} Nf6 {[%emt 0:00:13]} 5. Nc3 {[%emt 0:00:02]} Nc6 {[%emt 0:00:32]} 6. Bg5 {[%emt 0:01:24]} e6 {[%emt 0:01:10]} 7. Nf3 {[%emt 0:01:28]} Be7 {[%emt 0:00:51]} 8. c5 {[%emt 0:08:46]} O-O {[%emt 0:04:00]} 9. Bb5 {[%emt 0:11:29]} Ne4 {[%emt 0:18:35]} 10. Bxe7 {[%emt 0:10:40]} Nxe7 {[%emt 0:00:19]} 11. Qc2 {[%emt 0:03:58]} Qa5 {[%emt 0:04:41]} 12. Qa4 {[%emt 0:00:25]} Qxa4 {[%emt 0:19:41]} 13. Nxa4 {[%emt 0:00:11]} Rb8 {[%emt 0:09:23]} 14. Rc1 {[%emt 0:07:43]} f6 {[%emt 0:08:55]} 15. O-O {[%emt 0:07:13]} Nc6 {[%emt 0:00:35]} 16. a3 {[%emt 0:07:25]} Bd7 {[%emt 0:03:28]} 17. Rfe1 {[%emt 0:08:42]} g5 {[%emt 0:08:47]} 18. h3 {[%emt 0:02:54]} h5 {[%emt 0:00:43]} 19. Nc3 {[%emt 0:00:48]} Nxc3 {[%emt 0:01:32]} 20. Rxc3 {[%emt 0:00:20]} Kf7 {[%emt 0:01:15]} 21. Rd1 {[%emt 0:06:25]} Rg8 {[%emt 0:01:12]} 22. Ne1 {[%emt 0:05:52]} Ke7 {[%emt 0:01:57]} 23. Be2 {[%emt 0:00:22]} g4 {[%emt 0:03:47]} 24. b4 {[%emt 0:02:10]} e5 {[%emt 0:05:54]} 25. dxe5 {[%emt 0:00:45]} Nxe5 {[%emt 0:00:58]} 26. hxg4 {[%emt 0:03:26]} hxg4 {[%emt 0:00:05]} 27. Rxd5 {[%emt 0:01:22]} Bc6 {[%emt 0:00:53]} 28. Rd1 {[%emt 0:00:15]} Rbd8 {[%emt 0:01:10]} 29. Rxd8 {[%emt 0:01:17]} Rxd8 {[%emt 0:00:06]} 30. Nd3 {[%emt 0:00:09]} Nxd3 {[%emt 0:01:27]} 31. Rxd3 {[%emt 0:01:11]} Rxd3 {[%emt 0:00:23]} 32. Bxd3 {[%emt 0:00:01]} Ke6 {[%emt 0:00:17]} 33. Kh2 {[%emt 0:04:35]} Ke5 {[%emt 0:00:31]} 34. Be2 {[%emt 0:00:42]} Kd4 {[%emt 0:02:47]} 35. Bxg4 {[%emt 0:02:10]} Kc3 {[%emt 0:00:14]} 36. Be6 {[%emt 0:00:35]} Kb2 {[%emt 0:00:29]} 37. a4 {[%emt 0:00:42]} Bxa4 {[%emt 0:00:42]} 38. Bd5 {[%emt 0:00:01]} b6 {[%emt 0:00:50]} 39. c6 {[%emt 0:01:24]} Kc3 {[%emt 0:00:08]} 40. c7 {[%emt 0:00:00]} Bd7 {[%emt 0:00:00]} 41. Bb7 {[%emt 0:03:31]} Kxb4 {[%emt 0:00:18]} 42. c8=Q {[%emt 0:00:03]} Bxc8 {[%emt 0:00:07]} 43. Bxc8 {[%emt 0:00:03]} a5 {[%emt 0:01:39]} 44. f4 {[%emt 0:00:05]} a4 {[%emt 0:00:33]} 45. g4 {[%emt 0:00:05]} Kc5 {[%emt 0:00:10]} 46. Bd7 {[%emt 0:01:29]} b5 {[%emt 0:01:24]} 47. g5 {[%emt 0:00:28]} fxg5 {[%emt 0:00:07]} 48. fxg5 {[%emt 0:00:01]} a3 {[%emt 0:00:18]} 49. Be6 {[%emt 0:00:01]} Kd6 {[%emt 0:00:04]} 50. Bb3 {[%emt 0:00:04]} Ke5 {[%emt 0:00:52]} 51. Kg3 {[%emt 0:00:02]} Kf5 {[%emt 0:00:49]} 52. Kh4 {[%emt 0:00:01]} Kg6 {[%emt 0:00:32]} 53. Kg4 {[%emt 0:00:01]} Kg7 {[%emt 0:00:06]} 54. Kf5 {[%emt 0:00:01]} b4 {[%emt 0:02:26]} 55. Ba2 {[%emt 0:09:32]} b3 {[%emt 0:01:58]} 56. Bxb3 {[%emt 0:00:02]} Kh8 {[%emt 0:00:43]} 57. Kf6 {[%emt 0:00:03]} 1-0